bitfinex/quotes_SOLUSD_20241220
["timestamp","ask_amount","ask_price","bid_price","bid_amount"]
[1734681430934,0.73152974,191.1,191.01,50.0690745]
[1734681431223,26.2921905,191.08,191.01,50.0690745]
[1734681431425,26.2921905,191.08,191.0,50.0690745]
[1734681431787,26.2921905,191.09,191.02,23.776884]
[1734681432020,26.2921905,191.1,191.02,50.0690745]
[1734681432221,26.2921905,191.11,191.04,23.776884]
[1734681432424,26.2921905,191.13,191.06,23.776884]
[1734681433222,26.2921905,191.12,191.06,23.776884]
[1734681434409,0.73152974,191.15,191.06,23.776884]
[1734681434410,26.2921905,191.11,191.06,23.776884]
[1734681434716,26.2921905,191.12,191.05,23.776884]
[1734681435126,16.44731832,191.09,191.01,16.44731832]
[1734681435426,16.44731832,191.07,190.99,17.10926152]
[1734681435791,17.17884806,191.06,190.99,0.6619432]
[1734681435993,16.44731832,191.05,190.99,0.6619432]
[1734681436615,16.44731832,191.03,190.99,0.6619432]
[1734681437228,17.17884806,191.02,190.99,0.6619432]
[1734681438541,16.44731832,191.0,190.99,0.6619432]
[1734681440317,0.73152974,191.06,190.99,17.10926152]
[1734681440541,16.44731832,191.09,191.02,16.44731832]
[1734681440709,16.44731832,191.09,191.03,23.776884]
[1734681441035,0.73152974,191.08,191.01,26.32019205]
[1734681441206,26.32019205,191.07,191.01,23.776884]
[1734681441408,27.05172179,191.06,191.0,23.776884]
[1734681441625,26.32019205,191.06,191.0,23.776884]
[1734681443752,26.32019205,191.06,190.99,0.6619432]
[1734681444045,0.73152974,191.05,190.99,0.6619432]
[1734681444426,27.05172179,191.05,190.99,0.6619432]
[1734681444940,26.32019205,191.06,190.99,0.6619432]
[1734681445737,26.32019205,191.07,191.0,50.09707605]
[1734681446339,26.32019205,191.08,191.0,50.09707605]
[1734681446634,26.32019205,191.1,191.0,24.5619661]
[1734681446844,27.05172179,191.09,191.01,26.32019205]
[1734681447043,26.32019205,191.08,191.01,26.32019205]
[1734681447351,26.32019205,191.05,190.99,0.6619432]
[1734681447513,26.32019205,191.04,190.99,0.6619432]
[1734681449323,26.32019205,191.07,190.99,26.98213525]
[1734681449522,0.73152974,191.1,191.0,26.32019205]
[1734681449814,26.32019205,191.07,190.99,26.98213525]
[1734681450019,27.05172179,191.06,190.99,26.98213525]
[1734681450447,26.32019205,191.05,190.99,0.6619432]
[1734681452357,0.73152974,191.04,190.99,0.6619432]
[1734681454557,26.32019205,191.05,190.99,0.6619432]
[1734681455556,26.32019205,191.07,190.99,26.98213525]
[1734681455739,26.32019205,191.02,190.99,0.6619432]
[1734681456359,0.73152974,191.01,190.99,0.6619432]
[1734681456535,26.32019205,191.0,190.99,0.6619432]
[1734681461459,67.2812841,191.0,190.81,20.5016]
[1734681461660,26.32019205,190.93,190.85,26.32019205]
[1734681462174,26.32019205,190.93,190.81,0.78570416]
[1734681462375,26.32019205,190.86,190.78,26.32019205]
[1734681462968,0.73152974,190.85,190.78,16.49003684]
[1734681463268,16.49003684,190.86,190.78,16.49003684]
[1734681463474,16.49003684,190.9,190.82,16.49003684]
[1734681463850,0.73152974,190.91,190.84,16.49003684]
[1734681464964,27.09793132,190.93,190.85,26.36640158]
[1734681465279,26.36640158,190.93,190.85,26.36640158]
[1734681465773,0.73152974,190.92,190.82,23.776884]
[1734681465959,26.36640158,190.93,190.84,26.36640158]
[1734681466277,26.36640158,190.93,190.86,26.36640158]
[1734681467359,0.73152974,190.92,190.84,26.36640158]
[1734681467558,26.36640158,190.91,190.84,26.36640158]
[1734681467893,0.73152974,190.9,190.84,26.36640158]
[1734681468059,26.36640158,190.91,190.84,26.36640158]
[1734681468260,0.73152974,190.9,190.84,26.36640158]
[1734681468482,0.73152974,190.9,190.82,26.36640158]
[1734681469181,26.36640158,190.88,190.79,1.44782761]
[1734681469356,26.36640158,190.86,190.79,0.6619432]
[1734681469557,0.73152974,190.94,190.85,26.36640158]
[1734681469774,27.09793132,190.96,190.87,26.36640158]
[1734681469989,27.09793132,190.96,190.89,26.36640158]
[1734681470160,26.36640158,190.93,190.85,26.36640158]
[1734681470365,0.73152974,190.92,190.85,26.36640158]
[1734681470564,26.36640158,190.93,190.85,26.36640158]
[1734681470779,26.36640158,190.91,190.83,26.36640158]
[1734681470968,0.73152974,190.9,190.83,26.36640158]
[1734681471287,0.73152974,190.92,190.85,26.36640158]
[1734681472382,27.09793132,190.93,190.86,26.36640158]
[1734681474173,26.36640158,190.93,190.86,26.36640158]
[1734681474574,26.36640158,190.94,190.87,26.36640158]
[1734681474780,26.36640158,190.95,190.88,26.36640158]
[1734681475297,13.0907,190.98,190.89,26.36640158]
[1734681475487,26.36640158,190.97,190.89,26.36640158]
[1734681475794,26.36640158,190.96,190.89,26.36640158]
[1734681476496,26.36640158,190.97,190.89,26.36640158]
[1734681478101,26.36640158,190.97,190.91,26.36640158]
[1734681478397,13.0907,190.98,190.91,26.36640158]
[1734681478565,26.36640158,190.97,190.89,26.36640158]
[1734681478763,6.0214,191.02,190.93,26.36640158]
[1734681478964,26.36640158,191.02,190.94,26.36640158]
[1734681479416,26.36640158,191.04,190.96,26.36640158]
[1734681479572,26.36640158,191.05,190.97,26.36640158]
[1734681480268,26.36640158,191.05,190.98,26.36640158]
[1734681480473,20.942099,191.14,190.95,26.17425765]
[1734681480474,26.36640158,191.07,191.0,26.36640158]
[1734681480701,26.36640158,191.08,191.0,26.36640158]
[1734681481275,26.36640158,191.06,190.96,6.5296]
[1734681481496,26.36640158,191.05,190.97,26.36640158]
[1734681482213,26.36640158,191.05,190.98,26.36640158]
[1734681482381,26.36640158,191.06,190.98,26.36640158]
[1734681483307,26.36640158,191.06,190.99,26.36640158]
[1734681484114,26.36640158,191.07,190.99,26.36640158]
[1734681484508,26.36640158,191.07,191.0,26.36640158]
[1734681484695,26.36640158,191.08,191.0,26.36640158]
[1734681484893,26.36640158,191.09,191.01,26.36640158]
[1734681486201,19.6302,191.12,190.98,26.36640158]
[1734681486202,26.36640158,191.06,190.98,26.36640158]
[1734681486393,26.36640158,191.06,190.99,26.36640158]
[1734681486588,26.36640158,191.07,191.0,26.36640158]
[1734681486887,26.36640158,191.1,191.03,26.36640158]
[1734681487087,16.44992934,191.1,191.03,16.44992934]
[1734681488881,22.99922934,191.12,191.04,16.44992934]
[1734681489084,6.5493,191.12,191.05,16.44992934]
[1734681491023,29.53002934,191.13,191.06,16.44992934]
[1734681491322,26.79411928,191.3,191.08,16.44992934]
[1734681491323,16.44992934,191.16,191.08,16.44992934]
[1734681491503,16.44992934,191.16,191.09,16.44992934]
[1734681492331,1.5882,191.09,191.05,23.776884]
[1734681492518,16.44992934,191.06,190.92,17.98382934]
[1734681492701,16.44992934,190.99,190.92,1.5339]
[1734681492902,16.44992934,190.99,190.92,17.98382934]
[1734681493698,16.44992934,191.0,190.92,17.98382934]
[1734681494517,16.44992934,191.0,190.93,16.44992934]
[1734681495034,26.34740163,191.01,190.94,26.34740163]
[1734681495631,26.34740163,191.0,190.93,50.12428563]
[1734681495807,26.34740163,191.0,190.93,23.776884]
[1734681496529,26.34740163,191.0,190.92,27.88130163]
[1734681497099,26.34740163,191.0,190.93,50.12428563]
[1734681497430,26.34740163,191.02,190.94,26.34740163]
[1734681497902,26.34740163,191.03,190.96,26.34740163]
[1734681498734,26.34740163,191.05,190.98,26.34740163]
[1734681498908,26.34740163,191.05,190.99,23.776884]
[1734681499107,26.34740163,191.05,190.98,26.34740163]
[1734681499732,26.34740163,191.04,190.97,26.34740163]
[1734681499910,26.34740163,191.05,190.97,26.34740163]
[1734681500116,26.34740163,191.06,190.99,26.34740163]
[1734681500463,26.34740163,191.05,190.98,50.12428563]
[1734681500928,26.34740163,191.06,190.99,26.34740163]
[1734681501239,26.34740163,191.06,190.98,50.12428563]
[1734681501736,26.34740163,191.04,190.98,23.776884]
[1734681501913,26.34740163,191.02,190.95,50.12428563]
[1734681502231,26.34740163,191.03,190.96,26.34740163]
[1734681502412,13.0853,191.06,190.97,26.34740163]
[1734681502413,26.34740163,191.04,190.97,26.34740163]
[1734681503202,26.34740163,191.05,190.97,26.34740163]
[1734681503405,26.34740163,191.04,190.97,26.34740163]
[1734681504036,26.34740163,191.05,190.98,23.776884]
[1734681504240,26.34740163,191.05,190.98,50.12428563]
[1734681504642,26.34740163,191.06,190.99,26.34740163]
[1734681505250,21.0223,191.09,190.95,0.78520016]
[1734681505251,26.34740163,191.02,190.95,0.78520016]
[1734681505541,26.34740163,191.02,190.94,26.34740163]
[1734681505837,26.34740163,191.02,190.92,2.31909079]
[1734681505838,26.34740163,191.02,190.95,26.34740163]
[1734681506041,26.34740163,191.03,190.96,26.34740163]
[1734681506428,26.34740163,191.02,190.94,26.34740163]
[1734681507548,26.34740163,191.01,190.94,26.34740163]
[1734681507921,26.34740163,191.02,190.95,26.34740163]
[1734681508320,26.34740163,191.01,190.94,26.34740163]
[1734681509339,26.34740163,191.02,190.95,26.34740163]
[1734681509646,26.34740163,191.03,190.96,26.34740163]
[1734681509845,26.34740163,191.04,190.97,26.34740163]
[1734681510550,26.34740163,191.02,190.95,50.12428563]
[1734681511046,26.34740163,191.02,190.95,26.34740163]
[1734681511239,26.34740163,191.0,190.93,26.34740163]
[1734681511446,26.34740163,191.01,190.94,26.34740163]
[1734681512967,13.0844,191.07,190.99,26.34740163]
[1734681513263,13.0844,191.07,190.97,26.34740163]
[1734681513264,26.34740163,191.05,190.97,26.34740163]
[1734681513432,26.34740163,191.04,190.96,26.34740163]
[1734681513625,26.34740163,191.03,190.96,26.34740163]
[1734681513826,26.34740163,191.04,190.97,26.34740163]
[1734681514259,26.34740163,191.04,190.96,26.34740163]
[1734681514565,26.34740163,191.05,190.97,26.34740163]
[1734681515850,26.34740163,191.0,190.92,27.88130163]
[1734681516051,26.34740163,191.01,190.94,26.34740163]
[1734681516759,26.34740163,191.02,190.95,26.34740163]
[1734681516930,16.46303078,191.02,190.95,16.46303078]
[1734681520971,16.46303078,191.04,190.96,16.46303078]
[1734681523010,13.0861,191.05,190.96,16.46303078]
[1734681523011,16.46303078,191.03,190.96,16.46303078]
[1734681523273,16.46303078,191.02,190.95,16.46303078]
[1734681523573,16.46303078,191.03,190.96,16.46303078]
[1734681523745,16.46303078,191.02,190.95,16.46303078]
[1734681524673,16.46303078,191.02,190.93,23.776884]
[1734681524674,16.46303078,191.03,190.96,16.46303078]
[1734681527088,16.46303078,191.03,190.95,16.46303078]
[1734681532292,29.55023078,191.03,190.95,16.46303078]
[1734681532776,16.46303078,191.02,190.94,16.46303078]
[1734681532967,16.46303078,191.02,190.95,16.46303078]
[1734681533287,16.46303078,191.02,190.94,16.46303078]
[1734681533464,16.46303078,191.02,190.95,16.46303078]
[1734681533883,16.46303078,191.02,190.94,16.46303078]
[1734681534068,16.46303078,191.01,190.94,16.46303078]
[1734681534267,16.46303078,190.99,190.92,16.46303078]
[1734681534583,16.46303078,190.98,190.91,16.46303078]
[1734681534784,16.46303078,190.99,190.92,16.46303078]
[1734681535285,24.66343078,191.0,190.92,16.46303078]
[1734681535485,8.2004,191.0,190.93,16.46303078]
[1734681535856,8.2004,191.0,190.94,16.46303078]
[1734681537367,29.55163078,191.01,190.94,16.46303078]
[1734681538274,20.0,190.98,190.94,16.46303078]
[1734681540175,20.0,190.98,190.92,16.46303078]
[1734681541298,29.55163078,191.01,190.92,16.46303078]
[1734681541663,20.0,190.98,190.92,16.46303078]
[1734681542263,20.0,190.98,190.9,16.46303078]
[1734681542589,20.0,190.96,190.9,16.46303078]
[1734681543487,33.0919,190.96,190.9,16.46303078]
[1734681543694,49.55493078,190.96,190.88,16.46303078]
[1734681543894,33.0919,190.96,190.9,16.46303078]
[1734681544298,33.0919,190.96,190.89,16.46303078]
[1734681544595,16.46303078,191.0,190.93,16.46303078]
[1734681544770,16.46303078,191.01,190.93,16.46303078]
[1734681546784,13.089,191.0,190.93,16.46303078]
[1734681546980,16.46303078,190.99,190.91,16.46303078]
[1734681548405,13.0903,190.98,190.87,1.6333]
[1734681548615,13.0903,190.98,190.92,16.46303078]
[1734681549341,16.46303078,190.93,190.88,23.776884]
[1734681549612,16.46303078,190.89,190.83,8.14351674]
[1734681549810,16.46303078,190.84,190.83,8.14351674]
[1734681550393,16.46303078,190.84,190.79,0.6619432]
[1734681551320,16.46303078,190.85,190.79,0.6619432]
[1734681551502,16.46303078,190.84,190.79,0.6619432]
[1734681552222,13.0945,190.92,190.8,16.46303078]
[1734681552391,16.46303078,190.87,190.8,16.46303078]
[1734681553416,16.46303078,190.86,190.79,17.12497398]
[1734681553615,16.46303078,190.84,190.79,0.6619432]
[1734681554098,16.46303078,190.85,190.79,0.6619432]
[1734681554614,28.28079818,190.93,190.79,17.12497398]
[1734681554615,16.46303078,190.86,190.79,17.12497398]
[1734681556114,16.46303078,190.87,190.8,16.46303078]
[1734681556299,16.46303078,190.88,190.81,16.46303078]
[1734681556688,16.46303078,190.86,190.79,0.6619432]
[1734681556892,16.46303078,190.85,190.79,17.12497398]
[1734681558192,16.46303078,190.86,190.79,17.12497398]
[1734681558603,16.46303078,190.87,190.8,16.46303078]
[1734681558987,16.46303078,190.87,190.81,16.46303078]
[1734681559306,16.46303078,190.87,190.8,16.46303078]
[1734681559706,16.46303078,190.9,190.83,16.46303078]
[1734681560014,16.46303078,190.91,190.84,16.46303078]
[1734681560199,16.46303078,190.91,190.81,0.78595833]
[1734681560200,16.46303078,190.92,190.86,16.46303078]
[1734681560920,16.46303078,190.93,190.87,16.46303078]
[1734681563792,16.46303078,190.92,190.86,16.46303078]
[1734681566413,16.46303078,190.92,190.87,16.46303078]
[1734681568422,16.46303078,190.92,190.86,16.46303078]
[1734681570190,1.5199,191.03,190.91,16.46303078]
[1734681570390,1.5199,191.03,190.99,16.46303078]
[1734681570589,16.46303078,191.0,190.86,13.88396003]
[1734681570790,14.6074,191.03,190.87,23.776884]
[1734681571497,16.46303078,190.99,190.93,16.46303078]
[1734681572225,16.46303078,191.01,190.94,16.46303078]
[1734681572693,16.46303078,190.99,190.88,0.78555686]
[1734681572898,16.46303078,190.99,190.93,16.46303078]
[1734681573721,16.46303078,191.0,190.94,16.46303078]
[1734681573917,16.46303078,191.01,190.94,16.46303078]
[1734681574109,16.46303078,191.01,190.95,16.46303078]
[1734681575015,16.46303078,191.02,190.95,16.46303078]
[1734681575554,17.98293078,191.03,190.96,16.46303078]
[1734681575696,16.46303078,191.05,190.98,16.46303078]
[1734681575897,16.46303078,191.06,190.99,16.46303078]
[1734681577097,16.46303078,191.1,191.03,16.46303078]
[1734681577402,16.46303078,191.1,191.04,16.46303078]
[1734681578523,23.12783078,191.11,191.05,16.46303078]
[1734681578836,6.3939,191.16,191.1,16.46303078]
[1734681579126,1.5471,191.23,191.15,16.46303078]
[1734681579335,14.56403053,191.25,191.19,16.46303078]
[1734681579526,14.56403053,191.25,191.1,17.24764782]
[1734681579527,7.98083053,191.25,191.21,16.46303078]
[1734681579840,7.98083053,191.25,191.24,16.46303078]
[1734681580252,51.55498322,191.26,191.24,16.46303078]
[1734681580253,3.67,191.26,191.24,16.46303078]
[1734681580553,3.67,191.26,191.25,16.46303078]
[1734681581123,3.67,191.26,191.24,16.46303078]
[1734681581329,3.67,191.26,191.23,16.46303078]
[1734681581533,3.67,191.26,191.22,16.46303078]
[1734681583072,3.67,191.26,191.21,16.46303078]
[1734681583329,3.67,191.26,191.2,16.46303078]
[1734681584041,16.46303078,191.23,191.17,16.46303078]
[1734681584338,16.46303078,191.25,191.19,16.46303078]
[1734681584934,16.46303078,191.25,191.18,16.46303078]
[1734681585120,20.13303078,191.26,191.19,16.46303078]
[1734681585323,20.13303078,191.26,191.2,16.46303078]
[1734681585523,20.13303078,191.26,191.19,16.46303078]
[1734681586042,20.13303078,191.26,191.2,16.46303078]
[1734681586336,3.67,191.26,191.21,16.46303078]
[1734681586640,3.67,191.26,191.22,16.46303078]
[1734681587267,3.67,191.26,191.21,16.46303078]
[1734681588469,16.46303078,191.27,191.21,16.46303078]
[1734681588644,16.46303078,191.28,191.21,16.46303078]
[1734681588965,16.46303078,191.3,191.24,16.46303078]
[1734681589140,16.46303078,191.31,191.24,16.46303078]
[1734681589540,13.0669,191.33,191.25,16.46303078]
[1734681589742,20.0,191.33,191.27,16.46303078]
[1734681590248,16.46303078,191.34,191.27,16.46303078]
[1734681590455,16.46303078,191.35,191.28,16.46303078]
[1734681590663,16.46303078,191.36,191.29,16.46303078]
[1734681590833,16.46303078,191.37,191.3,16.46303078]
[1734681591651,16.46303078,191.38,191.31,16.46303078]
[1734681591945,16.80643078,191.39,191.32,16.46303078]
[1734681592363,16.46303078,191.38,191.31,16.46303078]
[1734681592861,16.46303078,191.34,191.28,16.46303078]
[1734681593080,16.46303078,191.34,191.25,6.1724]
[1734681593081,16.46303078,191.34,191.27,16.46303078]
[1734681593969,16.46303078,191.33,191.26,16.46303078]
[1734681595063,16.46303078,191.34,191.26,16.46303078]
[1734681595273,16.46303078,191.34,191.21,0.78399261]
[1734681595274,16.46303078,191.34,191.27,16.46303078]
[1734681596166,13.4064,191.39,191.28,16.46303078]
[1734681596167,16.46303078,191.35,191.28,16.46303078]
[1734681596354,16.46303078,191.38,191.31,16.46303078]
[1734681596838,16.46303078,191.37,191.3,16.46303078]
[1734681597045,16.46303078,191.38,191.31,16.46303078]
[1734681598451,16.46303078,191.35,191.28,16.46303078]
[1734681598641,16.46303078,191.34,191.26,16.46303078]
[1734681599271,16.46303078,191.34,191.27,16.46303078]
[1734681600337,16.46303078,191.32,191.25,16.46303078]
[1734681600663,16.46303078,191.31,191.25,16.46303078]
[1734681601543,16.46303078,191.3,191.24,16.46303078]
[1734681601743,16.46303078,191.32,191.26,16.46303078]
[1734681602270,16.46303078,191.32,191.25,16.46303078]
[1734681602477,16.46303078,191.31,191.24,16.46303078]
[1734681603464,16.46303078,191.28,191.22,0.7841301]
[1734681603743,16.46303078,191.27,191.21,23.86303078]
[1734681603964,16.46303078,191.28,191.23,23.776884]
[1734681604484,16.46303078,191.27,191.22,8.18413533]
[1734681604693,16.46303078,191.27,191.23,23.776884]
[1734681604977,16.46303078,191.29,191.23,23.776884]
[1734681605149,20.0,191.25,191.22,8.18413533]
[1734681605351,16.46303078,191.28,191.2,16.46303078]
[1734681605553,16.46303078,191.27,191.2,16.46303078]
[1734681605973,20.0,191.27,191.14,8.18416423]
[1734681606155,20.0,191.27,191.19,16.46303078]
[1734681606482,36.46303078,191.27,191.19,16.46303078]
[1734681606671,16.46303078,191.25,191.18,16.46303078]
[1734681606874,16.46303078,191.21,191.12,8.18434516]
[1734681607178,16.46303078,191.15,191.07,16.46303078]
[1734681607378,23.776884,191.19,191.05,8.00555423]
[1734681607548,20.0,191.16,191.05,8.00555423]
[1734681607949,36.46303078,191.16,191.08,16.46303078]
[1734681608245,16.46303078,191.12,191.05,31.86858501]
[1734681608483,16.46303078,191.12,191.05,8.00555423]
[1734681608776,16.46303078,191.2,191.06,16.46303078]
[1734681608777,16.46303078,191.13,191.06,16.46303078]
[1734681608985,26.30946925,191.13,191.06,26.30946925]
[1734681609460,7.32710773,191.13,191.05,26.30946925]
[1734681609782,7.32710773,191.13,191.06,26.30946925]
[1734681609990,26.30946925,191.12,191.04,26.30946925]
[1734681610487,26.30946925,191.12,191.05,26.30946925]
[1734681610981,26.30946925,191.13,191.05,26.30946925]
[1734681611183,26.30946925,191.11,191.03,26.30946925]
[1734681611384,26.30946925,191.09,191.01,26.30946925]
[1734681611682,26.30946925,191.09,191.02,26.30946925]
[1734681611892,26.30946925,191.11,191.04,26.30946925]
[1734681612065,26.30946925,191.12,191.04,26.30946925]
[1734681612270,26.30946925,191.14,191.07,26.30946925]
[1734681612573,26.30946925,191.12,191.04,26.30946925]
[1734681612755,20.0,191.14,191.0,26.30946925]
[1734681612956,20.0,191.14,190.96,13.4608]
[1734681613151,20.0,191.1,190.96,13.4608]
[1734681613382,26.30946925,191.08,191.01,26.30946925]
[1734681613587,26.30946925,191.07,191.0,26.30946925]
[1734681613882,26.30946925,191.08,191.0,26.30946925]
[1734681614264,26.30946925,191.07,191.0,26.30946925]
[1734681614464,26.30946925,191.05,190.97,26.30946925]
[1734681614872,26.30946925,191.02,190.94,26.30946925]
[1734681615062,26.30946925,191.0,190.91,6.59]
[1734681615264,26.30946925,191.0,190.92,26.30946925]
[1734681615492,26.30946925,191.0,190.91,6.59]
[1734681615493,26.30946925,190.98,190.91,6.59]
[1734681615671,26.30946925,190.99,190.92,26.30946925]
[1734681616188,26.30946925,190.96,190.89,26.30946925]
[1734681616395,26.30946925,190.97,190.9,26.30946925]
[1734681617576,26.30946925,190.94,190.87,26.30946925]
[1734681617870,26.30946925,190.94,190.86,6.2342]
[1734681617871,26.30946925,190.96,190.88,26.30946925]
[1734681618081,26.30946925,190.96,190.89,26.30946925]
[1734681618401,26.30946925,190.94,190.87,26.30946925]
[1734681618573,26.30946925,190.94,190.86,26.30946925]
[1734681619074,26.30946925,190.9,190.83,26.30946925]
[1734681619681,26.30946925,190.91,190.83,26.30946925]
[1734681619977,26.30946925,190.86,190.79,0.6619432]
[1734681620174,26.30946925,190.88,190.81,26.30946925]
[1734681620375,26.30946925,190.9,190.83,26.30946925]
[1734681621004,26.30946925,190.9,190.82,26.30946925]
[1734681621305,26.30946925,190.9,190.83,26.30946925]
[1734681621597,32.41976925,190.96,190.88,26.30946925]
[1734681621901,6.1103,190.96,190.8,47.59805278]
[1734681622198,26.30946925,190.95,190.88,26.30946925]
[1734681622387,13.0924,190.95,190.79,20.6619432]
[1734681622597,13.0924,190.95,190.79,0.6619432]
[1734681623207,13.0924,190.95,190.8,0.78594242]
[1734681623390,13.0924,190.95,190.79,0.6619432]
[1734681623601,46.30946925,190.92,190.85,26.30946925]
[1734681623903,26.30946925,190.93,190.86,26.30946925]
[1734681624269,6.1103,190.96,190.9,26.30946925]
[1734681624497,13.0897,190.99,190.9,26.30946925]
[1734681625293,13.0897,190.99,190.81,8.18579792]
[1734681625482,26.30946925,190.94,190.87,26.30946925]
[1734681625690,26.30946925,190.94,190.86,26.30946925]
[1734681626003,26.30946925,190.95,190.88,26.30946925]
[1734681626701,8.5877023,191.01,190.94,26.30946925]
[1734681626702,6.5278,191.01,190.94,26.30946925]
[1734681626884,6.2416,191.05,190.98,26.30946925]
[1734681627090,26.30946925,191.07,191.0,26.30946925]
[1734681627295,27.92876925,191.08,191.0,26.30946925]
[1734681627503,19.3241,191.1,190.95,8.1852312]
[1734681627713,19.3241,191.1,191.04,26.30946925]
[1734681627714,6.2416,191.1,191.04,26.30946925]
[1734681628009,32.55106925,191.1,191.02,26.30946925]
[1734681628191,26.30946925,191.07,191.0,26.30946925]
[1734681628576,26.30946925,191.08,191.0,26.30946925]
[1734681628800,26.30946925,191.06,190.99,26.30946925]
[1734681629004,26.30946925,191.03,190.96,26.30946925]
[1734681629201,26.30946925,191.02,190.95,26.30946925]
[1734681630408,26.30946925,191.03,190.96,26.30946925]
[1734681630704,26.30946925,191.03,190.95,26.30946925]
[1734681630906,26.30946925,191.03,190.89,7.34122183]
[1734681630907,26.30946925,190.99,190.92,26.30946925]
[1734681631089,26.30946925,190.97,190.9,26.30946925]
[1734681631599,26.30946925,190.99,190.85,8.1856993]
[1734681631808,26.30946925,191.01,190.94,26.30946925]
[1734681632808,26.30946925,191.02,190.95,26.30946925]
[1734681633417,26.30946925,191.01,190.94,26.30946925]
[1734681633906,26.30946925,191.02,190.95,26.30946925]
[1734681634086,26.30946925,191.03,190.96,26.30946925]
[1734681634415,26.30946925,191.12,191.02,26.30946925]
[1734681634716,20.938866,191.18,191.0,20.0]
[1734681634878,6.6096,191.2,191.03,0.78510053]
[1734681635079,29.3290244,191.26,191.07,20.0]
[1734681635273,20.929933,191.26,191.08,0.78464316]
[1734681635479,6.3218,191.31,191.11,20.0]
[1734681635678,1.5301,191.33,191.03,32.05935314]
[1734681635679,26.30946925,191.32,191.25,26.30946925]
[1734681635917,46.30946925,191.36,191.28,26.30946925]
[1734681636205,20.0,191.36,191.16,20.78414746]
[1734681636515,13.065,191.35,191.16,20.0]
[1734681636806,26.30946925,191.27,191.2,26.30946925]
[1734681638009,26.30946925,191.25,191.18,26.30946925]
[1734681638210,26.30946925,191.2,191.13,26.30946925]
[1734681638376,6.371,191.24,191.07,6.1343]
[1734681638585,20.0,191.21,191.07,6.1343]
[1734681639110,26.30946925,191.16,191.09,26.30946925]
[1734681639285,26.30946925,191.13,191.06,26.30946925]
[1734681639491,26.30946925,191.12,191.05,26.30946925]
[1734681639691,26.30946925,191.13,191.06,26.30946925]
[1734681639995,26.30946925,191.14,191.06,26.30946925]
[1734681640196,26.30946925,191.16,191.08,26.30946925]
[1734681640414,26.30946925,191.13,191.05,26.30946925]
[1734681640621,13.0768,191.18,190.98,8.18489395]
[1734681640622,26.30946925,191.09,190.98,8.18489395]
[1734681640796,13.0768,191.18,190.98,26.30946925]
[1734681640797,6.1201,191.11,190.98,26.30946925]
[1734681640994,20.0,191.08,190.98,26.30946925]
[1734681641309,26.30946925,191.07,191.0,26.30946925]
[1734681641511,26.30946925,191.06,190.98,26.30946925]
[1734681642021,46.30946925,191.08,191.0,26.30946925]
[1734681642200,26.30946925,191.06,190.99,26.30946925]
[1734681642592,26.30946925,191.07,190.99,26.30946925]
[1734681642803,20.0,191.08,191.01,26.30946925]
[1734681643112,39.39246925,191.09,191.02,26.30946925]
[1734681643316,39.39246925,191.09,191.01,26.30946925]
[1734681643485,26.30946925,191.08,191.0,26.30946925]
[1734681643688,26.30946925,191.09,191.02,26.30946925]
[1734681643909,26.30946925,191.14,191.06,26.30946925]
[1734681644092,26.30946925,191.16,191.09,26.30946925]
[1734681644306,39.38726925,191.17,191.1,26.30946925]
[1734681644701,13.0778,191.17,191.11,26.30946925]
[1734681645213,26.30946925,191.19,191.11,26.30946925]
[1734681645520,26.30946925,191.17,191.1,26.30946925]
[1734681645699,26.30946925,191.14,191.06,26.30946925]
[1734681645907,39.2242,191.21,191.01,8.18489574]
[1734681646217,26.30946925,191.14,191.07,26.30946925]
[1734681646810,39.2242,191.21,191.05,26.30946925]
[1734681646811,26.30946925,191.12,191.05,26.30946925]
[1734681648018,26.30946925,191.2,191.0,26.30946925]
[1734681648019,26.30946925,191.07,191.0,26.30946925]
[1734681648617,26.30946925,191.06,190.98,26.30946925]
[1734681648817,26.30946925,191.08,191.0,26.30946925]
[1734681649006,26.30946925,191.11,191.04,26.30946925]
[1734681649399,26.30946925,191.12,191.05,26.30946925]
[1734681649620,26.30946925,191.15,191.08,26.30946925]
[1734681649924,32.48296925,191.16,191.09,26.30946925]
[1734681650308,26.30946925,191.15,191.08,26.30946925]
[1734681650836,26.30946925,191.12,191.05,26.30946925]
[1734681651138,26.30946925,191.13,191.05,26.30946925]
[1734681651315,26.30946925,191.13,191.06,26.30946925]
[1734681651702,26.30946925,191.11,191.03,26.30946925]
[1734681652236,26.30946925,191.11,191.04,26.30946925]
[1734681652632,26.30946925,191.1,191.02,26.30946925]
[1734681652805,26.30946925,191.07,191.0,26.30946925]
[1734681653003,26.30946925,191.08,191.01,26.30946925]
[1734681653220,26.30946925,191.09,191.01,26.30946925]
[1734681653540,26.30946925,191.07,190.99,26.30946925]
[1734681653828,39.39246925,191.09,191.01,26.30946925]
[1734681654027,39.39246925,191.09,191.02,26.30946925]
[1734681654230,26.30946925,191.1,191.02,26.30946925]
[1734681654528,26.30946925,191.08,191.01,26.30946925]
[1734681654919,26.30946925,191.08,191.0,26.30946925]
[1734681655122,26.30946925,191.07,190.99,26.30946925]